bitfinex-derivatives/quotes_ETHF0:USTF0_20260203
["timestamp","ask_amount","ask_price","bid_price","bid_amount"]
[1770102988157,4.65213235,2322.6,2322.1,0.21552]
[1770102988459,12.593,2322.5,2322.3,0.2155]
[1770102988659,12.593,2322.5,2322.3,2.75874414]
[1770102988860,9.579,2322.4,2322.3,2.75874414]
[1770102989361,9.579,2322.4,2322.3,0.2155]
[1770102989859,8.93130977,2322.4,2322.3,0.2155]
[1770102990865,2.5795732,2322.9,2322.3,0.2155]
[1770102991161,17.50381783,2322.8,2322.3,0.2155]
[1770102991761,0.03555386,2322.7,2321.9,2.54324414]
[1770102992059,4.90381783,2322.6,2321.9,2.54324414]
[1770102992260,9.602,2322.5,2321.9,2.54324414]
[1770102992452,12.617,2322.5,2322.3,0.2155]
[1770102992658,12.617,2322.5,2321.9,2.54324414]
[1770102992861,3.015,2322.9,2322.4,2.75873414]
[1770102993061,9.25764898,2322.5,2322.4,2.75873414]
[1770102993261,9.605,2322.5,2322.4,2.75873414]
[1770102994159,9.605,2322.5,2322.2,2.54324414]
[1770102995260,2.5795732,2323.1,2322.4,2.75873414]
[1770102995463,12.626,2323.0,2322.5,2.75872414]
[1770102995663,17.1527954,2323.0,2322.5,2.75872414]
[1770102995860,3.99340803,2323.0,2322.8,2.54324414]
[1770102996163,6.37546901,2323.7,2321.8,10.80927135]
[1770102996164,2.5795732,2323.7,2323.2,2.67141245]
[1770102996362,12.631,2323.6,2323.2,2.67628945]
[1770102996562,12.631,2323.6,2323.2,0.220297]
[1770102996563,17.50938066,2323.6,2323.2,0.220297]
[1770102996763,4.87838066,2323.6,2323.2,0.220297]
[1770102996966,12.644,2323.5,2322.8,2.45599245]
[1770102997160,13.02459777,2323.5,2322.8,0.21545]
[1770102997463,4.70120218,2323.4,2322.8,0.21545]
[1770102998066,4.70120218,2323.4,2322.8,0.21944375]
[1770102998265,5.0716129,2323.4,2322.8,0.21944375]
[1770102998961,12.654,2323.3,2322.8,0.21944375]
[1770102999465,4.98782806,2323.2,2322.8,0.21944375]
[1770103000062,0.37665662,2323.1,2322.4,3.86554966]
[1770103000260,0.37665662,2323.1,2322.4,0.21549]
[1770103000463,4.93156146,2323.0,2322.4,0.21549]
[1770103000764,12.661,2322.9,2322.5,0.21548]
[1770103001167,4.93156146,2322.8,2322.5,0.22074018]
[1770103001368,4.93156146,2322.8,2322.4,2.45599245]
[1770103001668,4.93156146,2322.8,2322.5,0.21548]
[1770103001867,4.93156146,2322.8,2322.2,2.45599245]
[1770103002169,4.93156146,2322.8,2322.0,2.45599245]
[1770103002368,4.93156146,2322.8,2322.0,2.46094962]
[1770103003170,5.30710099,2322.8,2322.0,2.46094962]
[1770103004467,0.35205545,2322.7,2321.9,0.21553]
[1770103004670,0.35205545,2322.5,2321.6,2.45599245]
[1770103004867,0.35205545,2322.2,2321.4,0.21558]
[1770103005073,0.35205545,2322.0,2321.4,0.21558]
[1770103005274,3.36705545,2321.9,2321.4,0.21558]
[1770103005469,7.987283,2321.9,2321.4,0.00457624]
[1770103005675,7.987283,2321.9,2321.1,2.45599245]
[1770103006173,9.663,2321.8,2321.3,2.45599245]
[1770103006673,3.06785985,2321.7,2321.6,2.45599245]
[1770103006971,0.52461571,2321.7,2321.5,0.21557]
[1770103007477,9.663,2322.1,2321.8,0.21554]
[1770103007774,9.66630215,2322.1,2321.8,0.21554]
[1770103007965,0.00330215,2322.1,2321.7,2.19232794]
[1770103008171,9.665,2322.4,2322.3,0.2155]
[1770103008671,9.665,2322.4,2321.9,2.18902579]
[1770103009173,9.66922112,2322.4,2322.3,0.2155]
[1770103009375,2.50481544,2323.0,2322.1,2.18902579]
[1770103009575,9.668,2322.9,2322.1,2.18902579]
[1770103009778,9.668,2322.9,2322.2,5.62055269]
[1770103010176,2.50481544,2323.0,2322.2,5.62055269]
[1770103010475,9.669,2322.9,2322.2,5.62055269]
[1770103011178,9.669,2322.9,2322.5,0.21548]
[1770103011377,12.02037893,2322.9,2322.5,0.21548]
[1770103012779,2.35137893,2322.8,2322.5,0.21548]
[1770103012980,2.35137893,2322.8,2322.2,5.62055269]
[1770103013279,2.35137893,2322.8,2322.5,0.21548]
[1770103013981,9.679,2322.8,2322.5,0.21548]
[1770103014475,0.00415595,2323.0,2322.8,0.21546]
[1770103014779,9.68,2323.1,2322.8,0.21546]
[1770103015480,2.5795732,2323.5,2322.8,0.21546]
[1770103015681,4.3064,2323.3,2322.3,2.35211454]
[1770103015876,17.68984306,2323.4,2322.3,2.35211454]
[1770103016082,12.697,2323.4,2322.4,5.69602]
[1770103016486,2.35137893,2323.3,2322.4,5.69602]
[1770103017081,2.35137893,2323.3,2322.8,0.21546]
[1770103017379,38.76064215,2324.1,2323.1,0.08027908]
[1770103017582,38.76064215,2324.1,2322.9,5.62225112]
[1770103017583,3.015,2325.0,2323.4,4.40177874]
[1770103017781,9.684,2324.9,2324.0,0.21534]
[1770103017982,4.61730916,2324.6,2324.1,0.21533]
[1770103018182,4.583,2324.5,2324.1,0.21533]
[1770103018482,0.0042277,2324.5,2324.1,0.22032873]
[1770103018683,4.94693723,2325.2,2324.2,0.21532]
[1770103018882,4.304,2325.0,2324.2,0.21532]
[1770103019078,4.304,2325.1,2324.2,0.21532]
[1770103019384,9.25093723,2324.9,2324.2,0.21532]
[1770103019578,2.35137893,2324.7,2324.2,0.21532]
[1770103019985,2.35137893,2324.6,2324.2,0.21532]
[1770103020789,2.35137893,2324.7,2324.1,0.00499873]
[1770103020983,6.65537893,2324.7,2324.1,0.00499873]
[1770103021184,6.65537893,2324.6,2324.1,0.00499873]
[1770103021384,2.35137893,2324.5,2324.1,0.00499873]
[1770103021586,2.35137893,2324.5,2324.4,0.2153]
[1770103021784,6.65537893,2324.5,2324.1,0.00499873]
[1770103021989,2.35137893,2324.4,2323.6,2.55726234]
[1770103022284,2.35137893,2324.1,2323.6,0.21538]
[1770103022484,2.35137893,2323.7,2322.8,2.55726234]
[1770103022683,2.35137893,2323.7,2323.1,0.21543]
[1770103022886,2.35137893,2323.5,2323.1,5.63391103]
[1770103023189,5.54,2324.1,2322.4,2.35211454]
[1770103023190,2.35137893,2323.3,2322.4,2.35211454]
[1770103023384,7.32937893,2323.3,2322.8,0.21546]
[1770103023687,2.35137893,2323.2,2322.8,0.21546]
[1770103023887,6.65537893,2323.2,2322.8,0.21546]
[1770103024086,6.65537893,2323.2,2322.4,2.35211454]
[1770103024087,6.65537893,2323.1,2322.4,2.35211454]
[1770103024288,2.35137893,2323.1,2322.4,2.35211454]
[1770103024883,2.35137893,2323.0,2322.2,2.55726234]
[1770103025084,4.304,2322.9,2322.3,0.2155]
[1770103025289,2.35137893,2322.7,2322.2,0.00527859]
[1770103025488,2.35137893,2322.7,2321.8,2.35211454]
[1770103025690,2.35137893,2322.6,2321.7,0.21556]
[1770103025882,2.35137893,2322.4,2321.8,0.21554]
[1770103026287,2.35137893,2322.4,2321.8,5.80887901]
[1770103026483,2.35137893,2322.4,2321.8,0.22098362]
[1770103027088,2.35137893,2322.2,2321.8,0.22098362]
[1770103027289,2.35137893,2322.2,2321.3,2.35211454]
[1770103027484,6.65537893,2322.2,2321.3,4.90937688]
[1770103027689,2.35137893,2323.1,2321.8,2.56766454]
[1770103027990,2.35137893,2322.9,2321.9,2.56765454]
[1770103028191,2.35137893,2322.9,2322.2,0.21551]
[1770103028394,4.65674274,2322.8,2322.3,2.56761454]
[1770103028588,2.35137893,2322.8,2322.3,0.2155]
[1770103028790,4.304,2322.6,2322.3,0.2155]
[1770103028994,6.65537893,2322.6,2321.9,0.00301814]
[1770103029191,2.35137893,2322.6,2321.9,0.00301814]
[1770103029387,2.35137893,2322.6,2322.3,0.2155]
[1770103029591,4.304,2322.4,2321.9,0.00301814]
[1770103029787,2.35137893,2322.6,2321.9,0.00301814]
[1770103030396,4.304,2322.4,2321.9,0.00301814]
[1770103030594,2.35137893,2322.5,2321.9,0.00301814]
[1770103030895,6.65537893,2322.5,2321.9,0.00301814]
[1770103031199,4.99913607,2322.4,2322.3,0.2155]
[1770103031394,4.99913607,2322.4,2321.7,2.35211454]
[1770103031594,2.526,2322.7,2322.1,2.35211454]
[1770103031898,4.30098186,2322.6,2322.1,2.35211454]
[1770103032196,4.30098186,2322.6,2321.8,2.35211454]
[1770103032497,2.526,2322.7,2321.9,5.58219542]
[1770103032896,6.82698186,2322.7,2321.9,5.58219542]
[1770103033195,6.82698186,2322.7,2322.2,0.21551]
[1770103033389,9.17836079,2322.7,2322.2,0.21551]
[1770103033595,4.30098186,2322.5,2322.2,0.21551]
[1770103034097,4.30098186,2322.4,2322.2,0.21551]
[1770103034299,4.87737893,2322.7,2322.2,0.21551]
[1770103034300,4.30098186,2322.5,2322.2,0.21551]
[1770103034693,4.30098186,2322.4,2322.2,0.21551]
[1770103034893,2.35137893,2322.4,2321.8,0.00369253]
[1770103035095,4.30098186,2322.1,2321.8,0.00369253]
[1770103035395,4.30098186,2322.1,2321.7,0.21556]
[1770103035591,4.30098186,2322.0,2321.7,0.21556]
[1770103035797,4.30098186,2322.2,2321.7,0.21556]
[1770103036192,2.35137893,2322.7,2321.9,2.35211454]
[1770103036396,2.35137893,2322.7,2322.1,0.21552]
[1770103036597,6.65236079,2322.6,2322.1,0.21552]
[1770103036890,4.74500811,2322.7,2321.7,0.00478477]
[1770103037095,1.79382881,2322.7,2322.6,0.21548]
[1770103037297,7.09638704,2323.1,2322.6,0.21548]
[1770103037497,1.24999019,2322.9,2322.6,0.21548]
[1770103037995,1.24999019,2322.8,2322.6,0.21548]
[1770103038196,1.24999019,2322.9,2322.6,0.21548]
[1770103038999,1.24999019,2322.8,2322.6,0.21548]
[1770103039198,1.24999019,2322.9,2322.6,0.21548]
[1770103039795,1.24999019,2322.8,2322.6,0.21548]
[1770103039996,1.24999019,2322.9,2322.6,0.21548]
[1770103040593,2.35137893,2323.1,2322.6,0.21548]
[1770103040798,3.60849523,2322.7,2322.3,0.2155]
[1770103041093,2.35850504,2322.7,2322.3,0.2155]
[1770103041300,1.24999019,2322.5,2322.3,0.2155]
[1770103041795,1.24999019,2322.4,2322.3,0.2155]
[1770103042001,1.24999019,2322.5,2322.3,0.2155]
[1770103042497,0.80675019,2322.4,2322.3,0.2155]
[1770103042696,0.80675019,2322.5,2322.0,5.72132881]
[1770103042895,2.35850504,2322.6,2322.0,5.72132881]
[1770103043100,2.35850504,2322.4,2321.7,0.00478477]
[1770103043295,2.35850504,2322.4,2322.0,0.21553]
[1770103043601,3.16525523,2322.3,2321.7,0.00478477]
[1770103043796,2.35850504,2322.3,2321.7,0.00478477]
[1770103043989,2.35850504,2322.3,2322.0,0.21552]
[1770103044190,2.35850504,2322.6,2322.3,0.2155]
[1770103044398,2.35850504,2322.8,2322.3,0.2155]
[1770103044600,2.35850504,2322.6,2321.9,2.31852367]
[1770103046402,2.35850504,2322.6,2322.3,0.2155]
[1770103046701,3.16525523,2322.6,2322.3,0.2155]
[1770103046902,0.80675019,2322.4,2321.9,2.31852367]
[1770103047203,3.16525523,2322.6,2322.3,0.2155]
[1770103047398,2.35850504,2322.5,2321.9,2.31852367]
[1770103047999,3.16525523,2322.4,2321.7,2.32330844]
[1770103048298,2.35850504,2322.4,2322.1,0.21551]
[1770103048498,3.16525523,2322.4,2322.1,0.21551]
[1770103048702,0.29420019,2322.3,2322.1,0.21551]
[1770103048901,2.35850504,2322.4,2322.1,0.21551]
[1770103049094,2.35850504,2322.4,2322.2,0.21551]
[1770103049703,5.541,2322.9,2322.2,0.21551]
[1770103050103,4.89886865,2322.8,2322.2,0.21551]
[1770103050300,14.50386865,2322.8,2322.2,0.21551]
[1770103050506,9.605,2322.8,2321.8,5.48230752]
[1770103050706,4.51001666,2322.7,2322.2,0.21551]
[1770103051101,4.51001666,2322.7,2321.7,0.00478477]
[1770103051310,4.51001666,2322.7,2321.8,2.55726234]
[1770103051702,2.35850504,2322.6,2321.8,2.55726234]
[1770103052009,4.84146684,2322.5,2321.8,2.55726234]
[1770103052206,2.35850504,2322.4,2322.2,0.21551]
[1770103052408,2.35850504,2322.4,2321.9,2.55726234]
[1770103052611,4.91875523,2322.3,2321.9,2.55726234]
[1770103052810,7.27726027,2322.3,2321.9,2.55726234]
[1770103053106,2.35850504,2322.2,2321.8,2.92970246]
[1770103053308,2.35850504,2322.2,2321.7,2.57876179]
[1770103053507,0.25838329,2322.7,2321.7,2.57876179]
[1770103053711,2.67192401,2322.0,2321.0,6.41187373]
[1770103053909,38.44694996,2321.8,2320.8,0.21564]
[1770103054105,38.44694996,2321.8,2320.9,2.54312997]
[1770103054311,9.608,2321.9,2321.2,0.2156]
[1770103054708,14.50413772,2321.9,2321.2,0.22044793]
[1770103056414,14.50505346,2321.9,2321.2,0.22044793]
[1770103056612,0.00091574,2321.8,2320.7,0.21565]
[1770103056914,41.11887397,2321.6,2320.4,2.54312996]
[1770103057117,12.637,2321.5,2320.4,2.54312996]
[1770103057312,12.643,2321.4,2320.4,2.54312996]
[1770103057508,12.64610752,2321.4,2320.4,2.54646662]
[1770103057717,4.95938102,2321.3,2320.4,2.54646662]
[1770103057917,12.642,2321.2,2320.4,2.54646662]
[1770103058217,4.95938102,2321.1,2320.4,2.54646662]
[1770103058513,0.01615205,2321.0,2320.3,0.19953795]
[1770103058712,0.01615205,2321.0,2319.8,2.75885996]
[1770103058913,4.88405141,2320.9,2319.9,0.21572]
[1770103059120,4.88405141,2320.9,2319.9,2.75884996]
[1770103059318,15.31392401,2321.2,2319.9,2.75884996]
[1770103059319,4.88405141,2321.0,2319.9,2.75884996]
[1770103059514,3.016,2321.3,2320.4,2.75880996]
[1770103059711,9.632,2321.2,2320.4,2.75880996]
[1770103059911,4.66100827,2321.0,2320.5,2.54312996]
[1770103060110,5.487,2321.2,2320.5,2.54312996]
[1770103060310,4.33,2321.2,2320.7,5.35088841]
[1770103060512,4.33,2321.2,2320.8,5.35088841]
[1770103060715,4.33,2321.2,2320.9,5.35088841]
[1770103061113,4.51260956,2321.1,2320.3,0.21568]
[1770103061318,4.51260956,2321.1,2320.3,2.75880997]
[1770103061519,4.51260956,2321.1,2320.4,7.84531867]
[1770103061716,0.00310752,2321.4,2320.8,2.54312997]
[1770103061918,0.00310752,2321.4,2320.9,2.75875997]
[1770103062118,4.54179298,2321.3,2320.9,0.21563]
[1770103063020,4.54179298,2321.3,2320.9,5.5178187]
[1770103064113,0.00310752,2321.4,2321.1,5.3021887]
[1770103064317,0.00310752,2321.4,2321.0,5.3021887]
[1770103064714,0.00310752,2321.4,2321.1,5.3021887]
[1770103064915,0.00310752,2321.4,2320.9,0.21563]
[1770103064916,4.51946443,2321.3,2320.9,0.21563]
[1770103065112,4.51946443,2321.3,2320.3,0.21569]
[1770103066022,0.01078627,2321.2,2320.3,0.21569]
[1770103066320,4.55940731,2321.1,2320.3,0.21569]
[1770103066623,0.01078627,2321.1,2320.3,0.21569]
[1770103067025,0.01078627,2320.9,2319.7,0.21574]
[1770103067215,2.67192401,2320.0,2318.5,2.75897996]
[1770103067421,2.67192401,2320.1,2318.7,2.75896996]
[1770103067714,4.72670823,2319.9,2318.9,2.54312996]
[1770103067915,9.653,2319.8,2318.9,2.54312996]
[1770103068119,9.67935859,2319.8,2318.9,2.75894996]
[1770103068321,4.72670823,2319.7,2318.9,5.52127528]
[1770103068522,9.655,2319.6,2319.0,5.3021887]
[1770103068721,9.655,2319.6,2319.1,5.3021887]
[1770103068922,4.5138438,2319.5,2319.1,5.3021887]
[1770103069116,4.5138438,2319.5,2318.9,0.21908658]
[1770103069321,4.5138438,2319.5,2319.0,4.05837638]
[1770103070718,4.5138438,2319.5,2318.9,0.21908658]
[1770103070918,4.5138438,2319.5,2319.0,4.05837638]
[1770103071924,4.46505017,2319.5,2319.3,4.05837638]
[1770103072227,0.00548838,2319.7,2319.5,2.53940789]
[1770103072521,0.01033542,2320.5,2319.6,6.59778427]
[1770103072725,5.565,2320.3,2319.6,2.53940789]
[1770103072925,4.50883164,2320.2,2319.6,6.59778427]
[1770103073227,5.565,2320.3,2319.7,4.05837638]
[1770103073424,4.50883164,2320.2,2319.4,0.21577]
[1770103073630,4.50883164,2320.2,2319.4,4.27414638]
[1770103073928,4.50883164,2320.2,2319.5,4.05837638]
[1770103074129,4.50883164,2320.2,2319.8,2.5445756]
[1770103074329,4.50883164,2320.2,2319.8,6.60295198]
[1770103074529,4.50883164,2320.2,2319.9,4.05837638]
[1770103075027,4.50883164,2320.2,2319.9,2.83637638]
[1770103075228,4.50883164,2320.2,2320.0,2.83637638]
[1770103075425,4.50883164,2320.2,2319.8,2.83637638]
[1770103075830,4.50883164,2320.2,2319.9,2.83637638]
[1770103076028,4.50883164,2320.2,2319.8,2.83637638]
[1770103076529,4.50883164,2320.2,2319.9,2.83637638]
[1770103076729,4.50883164,2320.2,2319.8,2.83637638]
[1770103076927,4.50883164,2320.2,2319.5,0.21576]
[1770103077127,4.50883164,2320.2,2319.6,2.83637638]
[1770103078426,4.50883164,2320.2,2319.8,2.54076544]
[1770103078832,4.50883164,2320.2,2320.0,2.83637638]
[1770103079227,4.50883164,2320.2,2320.1,2.83637638]
[1770103079427,4.50883164,2320.2,2320.0,2.83637638]
[1770103079925,4.50883164,2320.2,2320.1,2.83637638]
[1770103080122,4.50883164,2320.2,2320.0,2.83637638]
[1770103080522,4.50883164,2320.2,2319.6,0.21575]
[1770103080723,4.50883164,2320.2,2319.7,2.83637638]
[1770103081031,4.50883164,2320.2,2319.7,5.37809866]
[1770103081229,4.50883164,2320.2,2319.8,2.83637638]
[1770103081831,4.50883164,2320.2,2319.8,2.78187612]
[1770103082534,4.50883164,2320.2,2320.0,5.32645172]
[1770103082830,4.50883164,2320.2,2319.9,5.32645172]
[1770103083027,0.00353014,2320.3,2319.9,2.7602956]
[1770103083231,2.56294014,2321.0,2320.7,0.22224656]
[1770103083428,38.44694996,2321.1,2320.0,5.68255322]
[1770103083429,1.19732128,2321.1,2320.0,5.68255322]
[1770103083727,4.62193687,2320.8,2320.0,0.43796656]
[1770103083931,0.2156,2321.3,2320.0,0.21572]
[1770103083932,1.19732128,2320.6,2320.0,0.21572]
[1770103084132,0.96592375,2320.5,2319.0,6.37210774]
[1770103084334,1.51750908,2320.5,2319.6,0.21575]
[1770103084831,1.51750908,2320.5,2319.6,0.43799656]
[1770103085028,0.55158533,2320.5,2319.8,0.22224656]
[1770103085229,0.55158533,2320.5,2319.7,2.72101346]
[1770103085433,0.55158533,2320.5,2319.8,0.22224656]
[1770103085833,0.96592375,2320.4,2319.9,0.22224656]
[1770103086033,0.96592375,2320.4,2319.8,0.22224656]
[1770103086236,4.9890196,2320.3,2319.9,0.22224656]
[1770103086435,0.96686215,2320.2,2319.4,2.50527346]
[1770103086631,0.96686215,2320.2,2319.1,2.50527346]
[1770103086837,4.9937744,2320.1,2319.1,2.50527346]
[1770103087438,4.9937744,2320.1,2319.2,2.72106346]
[1770103087638,4.9937744,2320.1,2319.3,2.72105346]
[1770103088037,4.9937744,2320.1,2319.5,2.72103346]
[1770103088340,4.87658609,2320.4,2319.7,2.72101346]
[1770103088638,0.97002609,2320.5,2319.7,2.72101346]
[1770103089041,4.99779429,2320.4,2319.7,2.72101346]
[1770103089644,5.95827559,2320.4,2319.7,0.21574]
[1770103093838,4.99779429,2320.4,2319.7,2.72101346]
[1770103094236,43.44474425,2320.4,2319.7,2.72101346]
[1770103094437,4.99779429,2320.4,2319.7,2.72101346]
[1770103095343,43.44474425,2320.4,2319.7,2.72101346]
[1770103095542,4.99779429,2320.4,2319.7,2.72101346]
[1770103096241,43.44474425,2320.4,2319.7,2.72101346]
[1770103098441,43.44474425,2320.4,2319.7,0.21574]
[1770103098442,39.44133258,2320.3,2319.7,0.21574]
[1770103098643,38.44694996,2320.0,2319.3,0.21578]
[1770103098843,9.801,2319.9,2319.3,0.21578]
[1770103099042,14.6579535,2319.9,2319.4,2.72104346]
[1770103099345,14.6679535,2319.9,2319.6,2.50527346]
[1770103099841,38.44694996,2320.3,2319.6,2.50527346]
[1770103100037,38.4501139,2320.5,2319.6,2.50527346]
[1770103100242,4.91557095,2320.3,2319.6,2.50527346]
[1770103100443,4.91557095,2320.4,2319.6,2.50527346]
[1770103100638,38.4501139,2320.5,2319.6,2.50527346]
[1770103100836,1.00362996,2320.4,2319.6,2.50527346]
[1770103101040,1.00362996,2320.3,2319.4,0.21577]
[1770103101241,39.45057992,2320.1,2319.4,0.21577]
[1770103101544,14.50617377,2320.0,2319.4,0.21577]
[1770103101745,52.95312373,2320.0,2319.4,0.21577]
[1770103101940,1.00362996,2319.9,2319.0,6.22011597]
[1770103102148,39.45057992,2319.9,2319.0,2.37700823]
[1770103102342,44.09675254,2319.8,2319.0,2.37700823]
[1770103102544,38.44694996,2319.7,2319.0,2.37700823]
[1770103102944,4.73113444,2319.6,2319.0,2.37700823]
[1770103103139,9.869,2319.5,2319.0,2.37700823]
[1770103103344,10.85362881,2319.5,2319.0,0.00528435]
[1770103103543,4.73113444,2319.4,2319.0,0.00528435]
[1770103103749,4.73113444,2319.4,2318.9,0.21581]
[1770103103954,4.73113444,2319.4,2318.7,2.37172388]
[1770103104748,4.73113444,2319.4,2318.7,2.37674833]
[1770103105150,4.73113444,2319.4,2318.9,0.21582]
[1770103106350,4.73113444,2319.4,2318.9,2.58754388]
[1770103107052,4.73113444,2319.4,2318.7,0.00502445]
[1770103107247,4.73113444,2319.4,2318.6,2.37172388]
[1770103108150,4.73113444,2319.4,2318.6,2.58757388]
[1770103108352,4.73113444,2319.4,2318.6,2.59196868]
[1770103109752,9.948,2319.3,2318.6,2.59196868]
[1770103110148,4.59022208,2319.2,2318.6,2.59196868]
[1770103112453,14.53922208,2319.2,2318.6,2.59196868]
[1770103112752,9.949,2319.2,2318.6,2.59196868]
[1770103112948,4.82445287,2319.1,2318.6,2.59196868]
[1770103115261,4.82445287,2319.1,2318.7,2.58756388]
[1770103117561,4.82445287,2319.1,2318.7,0.21584]
[1770103117763,4.82445287,2319.1,2318.4,2.37172388]
[1770103117957,5.78550109,2319.1,2318.3,0.22196456]
[1770103118162,0.9637908,2319.0,2318.3,0.22196456]
[1770103118561,5.77756727,2318.9,2318.3,0.22196456]
[1770103118764,4.81377647,2318.9,2318.3,2.59734477]
[1770103118962,4.96734781,2319.0,2318.3,2.59734477]
[1770103119172,0.9637908,2319.1,2318.3,2.81321477]
[1770103119556,2.75536716,2319.0,2318.9,2.75934439]
[1770103119761,9.968,2319.6,2318.9,2.75934439]
[1770103119962,4.64339251,2319.1,2318.9,2.75934439]
[1770103120162,12.7180827,2319.6,2318.9,2.75934439]
[1770103120362,9.968,2319.6,2318.9,2.75934439]
[1770103120561,4.64339251,2319.1,2318.9,2.75934439]
[1770103120762,2.57249198,2319.5,2318.9,2.75934439]
[1770103120960,9.968,2319.6,2318.9,2.75934439]
[1770103121164,4.79955683,2319.1,2318.9,2.75934439]
[1770103121460,9.97377808,2319.6,2318.9,2.75934439]
[1770103121861,4.75967699,2319.5,2318.9,0.21582]
[1770103123058,4.75967699,2319.5,2318.5,2.54352439]
[1770103123264,38.44694996,2319.4,2318.3,2.98501528]
[1770103123666,4.87990591,2319.3,2318.3,2.98501528]
[1770103123866,4.87990591,2319.3,2318.5,2.54352439]
[1770103124162,9.988,2319.2,2318.5,2.54352439]
[1770103124368,9.988,2319.2,2318.7,0.21584]
[1770103124667,4.87990591,2319.1,2318.8,2.53933215]
[1770103124961,38.44694996,2319.7,2318.8,2.53933215]
[1770103125160,38.45533444,2319.9,2318.8,2.53933215]
[1770103125365,4.81653524,2319.5,2319.1,0.2158]
[1770103125562,0.00838448,2319.6,2319.1,0.2158]
[1770103125959,0.00838448,2319.3,2318.3,0.22562089]
[1770103126169,38.44694996,2318.8,2317.8,2.54352439]
[1770103126367,13.019,2318.7,2317.8,2.54352439]
[1770103126568,17.82273007,2318.7,2317.8,2.54352439]
[1770103126764,4.80373007,2318.7,2317.9,0.21591]
[1770103126968,10.002,2318.6,2318.2,2.54352439]
[1770103127169,10.00598398,2318.6,2318.2,2.54660125]
[1770103128871,10.00598398,2318.6,2318.1,0.21589]
[1770103128872,4.55101251,2318.5,2317.7,2.50663784]
[1770103129273,10.003,2318.4,2317.7,2.50663784]
[1770103129572,4.55101251,2318.3,2317.8,2.72255784]
[1770103129767,4.55101251,2318.3,2317.8,2.72742464]
[1770103132369,10.008,2318.5,2317.8,2.72742464]
[1770103132774,14.64169146,2318.5,2317.8,2.72742464]
[1770103132976,4.63369146,2318.5,2318.0,2.4975899]
[1770103134278,0.00398398,2318.6,2318.0,2.4975899]
[1770103134870,38.44694996,2319.1,2318.2,2.49743701]
[1770103135074,3.02,2319.2,2318.2,2.49743701]
[1770103135274,4.53130902,2318.8,2318.2,2.49743701]
[1770103135471,10.005,2319.1,2318.3,0.21587]
[1770103135673,10.79629816,2319.1,2318.3,0.21587]
[1770103135874,4.77123776,2318.7,2318.3,2.71330701]
[1770103136079,4.77123776,2318.8,2318.3,2.71330701]
[1770103136280,4.77123776,2319.0,2318.3,2.71330701]
[1770103136480,4.77123776,2318.7,2318.3,2.71330701]
[1770103136981,4.67269145,2319.0,2318.3,2.71330701]
[1770103137181,48.45727427,2319.1,2318.3,2.71330701]
[1770103137182,10.01032431,2319.1,2318.3,2.71330701]
[1770103137382,4.67269145,2319.0,2318.3,2.71330701]
[1770103140686,10.026,2318.9,2318.3,2.71330701]
[1770103141089,4.86167837,2318.8,2318.3,2.71330701]
[1770103142486,0.11678968,2318.7,2317.8,2.54939366]
[1770103142686,38.44694996,2318.7,2317.8,2.54939366]
[1770103142886,4.54177289,2318.6,2317.8,2.54939366]
[1770103143083,42.98872285,2318.6,2317.5,2.54452686]
[1770103143385,2.56827829,2318.5,2317.7,0.21593]
[1770103143786,4.9077224,2318.4,2317.7,0.21593]
[1770103143985,10.055,2318.3,2317.7,0.21593]
[1770103144186,10.055,2318.3,2317.7,0.2192146]
[1770103144482,4.9077224,2318.2,2317.3,2.54452686]
[1770103144788,4.9077224,2318.2,2317.7,2.54452686]
[1770103144990,14.9737224,2318.2,2317.7,2.54452686]
[1770103145190,14.9767224,2318.2,2317.7,2.54452686]
[1770103145390,10.069,2318.2,2317.7,2.5487497]
[1770103145590,4.93739069,2318.1,2317.7,2.5487497]
[1770103145991,4.50477787,2318.1,2317.7,2.5487497]
[1770103146792,4.50477787,2318.1,2317.7,0.00422284]
[1770103147090,4.50477787,2318.1,2317.2,2.54452686]
[1770103147793,10.086,2318.0,2317.2,2.54452686]
[1770103147991,10.086,2318.0,2317.2,2.54783107]
[1770103148189,4.85148689,2317.9,2317.2,2.54783107]
[1770103149292,4.85148689,2317.9,2317.2,0.00330421]
[1770103149788,4.85148689,2317.9,2317.2,2.54783107]
[1770103150092,4.85148689,2317.9,2317.2,2.76380107]
[1770103150296,4.85148689,2317.9,2317.2,2.54783107]
[1770103150502,4.85148689,2317.9,2317.5,2.76046686]
[1770103150696,4.85148689,2317.9,2317.5,0.21594]
[1770103151193,4.85148689,2317.9,2317.5,2.76046686]
[1770103152298,4.85148689,2317.9,2317.5,0.21594]
[1770103155803,4.85148689,2317.9,2317.5,2.76046686]
[1770103157907,4.85148689,2317.9,2317.5,0.21594]
[1770103158606,4.85148689,2317.9,2317.5,2.76046686]
[1770103159308,4.85148689,2317.9,2317.5,0.21594]
[1770103161012,4.85148689,2317.9,2317.2,2.54783107]
[1770103161200,4.85148689,2317.9,2317.5,0.21595]
[1770103161405,4.85148689,2317.9,2317.5,2.75970789]
[1770103161808,4.94898634,2318.1,2317.5,2.75970789]
[1770103162209,10.13,2318.2,2317.5,2.75970789]
[1770103162606,4.94898634,2318.1,2317.5,2.75970789]
[1770103169610,2.56827829,2318.7,2318.4,0.21586]
[1770103169805,10.16332431,2319.1,2318.5,2.54375789]
[1770103170007,10.16332431,2319.1,2318.5,2.75961789]
[1770103170204,4.79435064,2319.0,2318.5,2.75961789]
[1770103170516,0.00532431,2319.1,2318.8,2.54375789]
[1770103172409,38.44694996,2319.5,2318.8,2.75957789]
[1770103172712,4.78143288,2319.3,2318.8,2.75957789]
[1770103173112,10.19,2319.5,2318.8,2.75957789]
[1770103173312,4.99214938,2319.2,2318.8,2.75957789]
[1770103173514,4.99652369,2319.2,2318.8,2.75957789]
[1770103173809,0.00437431,2319.2,2318.8,2.75957789]
[1770103174009,10.19,2319.5,2318.8,2.75957789]
[1770103174312,4.99712416,2319.4,2318.8,2.75957789]
[1770103174713,38.44694996,2319.9,2319.2,2.54375789]
[1770103174915,2.4801334,2319.9,2319.3,0.21578]
[1770103175215,7.46735628,2319.7,2319.3,0.21578]
[1770103175408,2.4801334,2319.7,2319.2,0.00498549]
[1770103175816,4.98722288,2319.6,2319.2,0.00498549]
[1770103176014,7.46735628,2319.6,2319.3,0.21578]
[1770103176214,2.4801334,2319.5,2318.7,0.21584]
[1770103176608,0.00387975,2319.9,2318.5,2.40136483]
[1770103176609,4.69352817,2319.4,2318.9,2.61718483]
[1770103176815,2.4801334,2319.7,2318.9,2.61718483]
[1770103177115,4.55856854,2319.6,2318.9,2.62231244]
[1770103179115,4.55856854,2319.6,2319.0,0.21581]
[1770103179717,4.55856854,2319.6,2319.0,2.61717483]